Workbook

Sheet Dataset
B2: "XYZ" Company
B4: Product | C4: Selling Price | D4: Cost of Goods | E4: Operational Cost | F4: Interest | G4: Tax
B5: Shirt1 | C5: 2721 | D5: 1045 | E5: 300 | F5: 90 | G5: 30
B6: Shirt2 | C6: 2172 | D6: 1000 | E6: 296 | F6: 98 | G6: 45
B7: Shirt3 | C7: 2958 | D7: 1200 | E7: 345 | F7: 100 | G7: 39
B8: Jacket1 | C8: 3405 | D8: 1245 | E8: 350 | F8: 110 | G8: 45
B9: Jacket2 | C9: 2154 | D9: 780 | E9: 290 | F9: 68 | G9: 20
B10: Jacket3 | C10: 2580 | D10: 890 | E10: 256 | F10: 63 | G10: 29
B11: Pant1 | C11: 4316 | D11: 2560 | E11: 430 | F11: 100 | G11: 39
B12: Pant2 | C12: 4815 | D12: 2600 | E12: 500 | F12: 87 | G12: 40
B13: Pant3 | C13: 4792 | D13: 2220 | E13: 480 | F13: 90 | G13: 38

Sheet Gross
B2: Gross Profit Margin Percentage
B4: Product | C4: Selling Price | D4: Cost of Goods | E4: Gross Profit Margin
B5: Shirt1 | C5: 2721 | D5: 1045 | E5: =(C5-D5)/C5 -> 0.6159500184
B6: Shirt2 | C6: 2172 | D6: 1000 | E6: =(C6-D6)/C6 -> 0.5395948435
B7: Shirt3 | C7: 2958 | D7: 1200 | E7: 0.5943204868
B8: Jacket1 | C8: 3405 | D8: 1245 | E8: 0.6343612335
B9: Jacket2 | C9: 2154 | D9: 780 | E9: 0.6378830084
B10: Jacket3 | C10: 2580 | D10: 890 | E10: 0.6550387597
B11: Pant1 | C11: 4316 | D11: 2560 | E11: 0.406858202
B12: Pant2 | C12: 4815 | D12: 2600 | E12: 0.4600207684
B13: Pant3 | C13: 4792 | D13: 2220 | E13: 0.5367278798

Sheet Operating
B2: Operating Profit Margin Percentage
B4: Product | C4: Selling Price | D4: Cost of Goods | E4: Operational Cost | F4: Operating Profit Margin
B5: Shirt1 | C5: 2721 | D5: 1045 | E5: 300 | F5: =(C5-D5-E5)/C5 -> 0.5056964351
B6: Shirt2 | C6: 2172 | D6: 1000 | E6: 296 | F6: =(C6-D6-E6)/C6 -> 0.4033149171
B7: Shirt3 | C7: 2958 | D7: 1200 | E7: 345 | F7: 0.4776876268
B8: Jacket1 | C8: 3405 | D8: 1245 | E8: 350 | F8: 0.5315712188
B9: Jacket2 | C9: 2154 | D9: 780 | E9: 290 | F9: 0.5032497679
B10: Jacket3 | C10: 2580 | D10: 890 | E10: 256 | F10: 0.5558139535
B11: Pant1 | C11: 4316 | D11: 2560 | E11: 430 | F11: 0.3072289157
B12: Pant2 | C12: 4815 | D12: 2600 | E12: 500 | F12: 0.3561786085
B13: Pant3 | C13: 4792 | D13: 2220 | E13: 480 | F13: 0.4365609349

Sheet Net
B2: Net Profit Margin Percentage
B4: Product | C4: Selling Price | D4: Cost of Goods | E4: Operational Cost | F4: Interest | G4: Tax | H4: Net Profit Margin
B5: Shirt1 | C5: 2721 | D5: 1045 | E5: 300 | F5: 90 | G5: 30 | H5: =(C5-D5-E5-F5-G5)/C5 -> 0.4615950018
B6: Shirt2 | C6: 2172 | D6: 1000 | E6: 296 | F6: 98 | G6: 45 | H6: =(C6-D6-E6-F6-G6)/C6 -> 0.3374769797
B7: Shirt3 | C7: 2958 | D7: 1200 | E7: 345 | F7: 100 | G7: 39 | H7: 0.4306964165
B8: Jacket1 | C8: 3405 | D8: 1245 | E8: 350 | F8: 110 | G8: 45 | H8: 0.4860499266
B9: Jacket2 | C9: 2154 | D9: 780 | E9: 290 | F9: 68 | G9: 20 | H9: 0.4623955432
B10: Jacket3 | C10: 2580 | D10: 890 | E10: 256 | F10: 63 | G10: 29 | H10: 0.5201550388
B11: Pant1 | C11: 4316 | D11: 2560 | E11: 430 | F11: 100 | G11: 39 | H11: 0.2750231696
B12: Pant2 | C12: 4815 | D12: 2600 | E12: 500 | F12: 87 | G12: 40 | H12: 0.3298026999
B13: Pant3 | C13: 4792 | D13: 2220 | E13: 480 | F13: 90 | G13: 38 | H13: 0.4098497496

Sheet Table
B2: Using Table Option
B4: Product | C4: Selling Price | D4: Cost of Goods | E4: Gross Profit Margin
B5: Shirt1 | C5: 2721 | D5: 1045 | E5: =(Table1[[#This Row],[Selling Price]]-Table1[[#This Row],[Cost of Goods]])/Table1[[#This Row],[Selling Price]] -> 0.6159500184
B6: Shirt2 | C6: 2172 | D6: 1000 | E6: =(Table1[[#This Row],[Selling Price]]-Table1[[#This Row],[Cost of Goods]])/Table1[[#This Row],[Selling Price]] -> 0.5395948435
B7: Shirt3 | C7: 2958 | D7: 1200 | E7: =(Table1[[#This Row],[Selling Price]]-Table1[[#This Row],[Cost of Goods]])/Table1[[#This Row],[Selling Price]] -> 0.5943204868
B8: Jacket1 | C8: 3405 | D8: 1245 | E8: =(Table1[[#This Row],[Selling Price]]-Table1[[#This Row],[Cost of Goods]])/Table1[[#This Row],[Selling Price]] -> 0.6343612335
B9: Jacket2 | C9: 2154 | D9: 780 | E9: =(Table1[[#This Row],[Selling Price]]-Table1[[#This Row],[Cost of Goods]])/Table1[[#This Row],[Selling Price]] -> 0.6378830084
B10: Jacket3 | C10: 2580 | D10: 890 | E10: =(Table1[[#This Row],[Selling Price]]-Table1[[#This Row],[Cost of Goods]])/Table1[[#This Row],[Selling Price]] -> 0.6550387597
B11: Pant1 | C11: 4316 | D11: 2560 | E11: =(Table1[[#This Row],[Selling Price]]-Table1[[#This Row],[Cost of Goods]])/Table1[[#This Row],[Selling Price]] -> 0.406858202
B12: Pant2 | C12: 4815 | D12: 2600 | E12: =(Table1[[#This Row],[Selling Price]]-Table1[[#This Row],[Cost of Goods]])/Table1[[#This Row],[Selling Price]] -> 0.4600207684
B13: Pant3 | C13: 4792 | D13: 2220 | E13: =(Table1[[#This Row],[Selling Price]]-Table1[[#This Row],[Cost of Goods]])/Table1[[#This Row],[Selling Price]] -> 0.5367278798

Sheet VBA
B2: Using VBA Code
B4: Product | C4: Selling Price | D4: Cost of Goods | E4: Operational Cost | F4: Interest | G4: Tax | H4: Net Profit Margin
B5: Shirt1 | C5: 2721 | D5: 1045 | E5: 300 | F5: 90 | G5: 30 | H5: =margin(C5,D5,E5,F5,G5) -> 0.4615950018
B6: Shirt2 | C6: 2172 | D6: 1000 | E6: 296 | F6: 98 | G6: 45 | H6: =margin(C6,D6,E6,F6,G6) -> 0.3374769797
B7: Shirt3 | C7: 2958 | D7: 1200 | E7: 345 | F7: 100 | G7: 39 | H7: =margin(C7,D7,E7,F7,G7) -> 0.4306964165
B8: Jacket1 | C8: 3405 | D8: 1245 | E8: 350 | F8: 110 | G8: 45 | H8: =margin(C8,D8,E8,F8,G8) -> 0.4860499266
B9: Jacket2 | C9: 2154 | D9: 780 | E9: 290 | F9: 68 | G9: 20 | H9: =margin(C9,D9,E9,F9,G9) -> 0.4623955432
B10: Jacket3 | C10: 2580 | D10: 890 | E10: 256 | F10: 63 | G10: 29 | H10: =margin(C10,D10,E10,F10,G10) -> 0.5201550388
B11: Pant1 | C11: 4316 | D11: 2560 | E11: 430 | F11: 100 | G11: 39 | H11: =margin(C11,D11,E11,F11,G11) -> 0.2750231696
B12: Pant2 | C12: 4815 | D12: 2600 | E12: 500 | F12: 87 | G12: 40 | H12: =margin(C12,D12,E12,F12,G12) -> 0.3298026999
B13: Pant3 | C13: 4792 | D13: 2220 | E13: 480 | F13: 90 | G13: 38 | H13: =margin(C13,D13,E13,F13,G13) -> 0.4098497496

Sheet Practice
B2: Practice
B4: Product | C4: Selling Price | D4: Cost of Goods | E4: Operational Cost | F4: Interest | G4: Tax
B5: Shirt1 | C5: 2721 | D5: 1045 | E5: 300 | F5: 90 | G5: 30
B6: Shirt2 | C6: 2172 | D6: 1000 | E6: 296 | F6: 98 | G6: 45
B7: Shirt3 | C7: 2958 | D7: 1200 | E7: 345 | F7: 100 | G7: 39
B8: Jacket1 | C8: 3405 | D8: 1245 | E8: 350 | F8: 110 | G8: 45
B9: Jacket2 | C9: 2154 | D9: 780 | E9: 290 | F9: 68 | G9: 20
B10: Jacket3 | C10: 2580 | D10: 890 | E10: 256 | F10: 63 | G10: 29
B11: Pant1 | C11: 4316 | D11: 2560 | E11: 430 | F11: 100 | G11: 39
B12: Pant2 | C12: 4815 | D12: 2600 | E12: 500 | F12: 87 | G12: 40
B13: Pant3 | C13: 4792 | D13: 2220 | E13: 480 | F13: 90 | G13: 38
